Workbook

Sheet Riskk (hidden)
H1: =COUNT(H3:H20) -> 00:00:00 | I1: FALSE
H2: Main/sub | I2: Caption | J2: On Action | K2: NewGroup | M2: CITI raw | W2: Bizdate | X2: 2020-05-27
M3: ="Select 'New'," -> Select 'New',

Sheet Login
B2: Riskk . Com
B3: Sdn Bhd (CN 388306K)
H4: Box 389, Lot 7.16, Wisma Central, Jln Ampang, 50450 Kuala Lumpur
A9: 00:00:00 | B9: Net Income MTD YTD
J18: `

Sheet Main (hidden)
B2: SYARIKAT TAKAFUL MALAYSIA BERHAD
D3: * Please sheet(s) to print
AA4: Custodian Instruction - Citi | AB4: KWAP | AC4: KWAPFI
N6: Total | AA6: MM | AB6: KHAZANAH | AC6: YH-AUR-VCAM
A7: Value Date: | B7: 2020-05-22 | D7: Pg5 | E7: NO | AA7: YAMIR-MM | AB7: YAMIR-VCAM | AC7: VCAM-TABA | AD7: ASEAN5ESG
K8: Please debit the above Beneficiary Account and remit the funds to the aforementioned Placement to effect the Placement. | AA8: YAMIR | AB8: YAMIR-VCAM | AC8: VCAM-TABA | AD8: ASEAN5ESG
A9: Fund Group Code: | B9: INTERNAL | K9: On maturity of the Placement, please arrange to credit all monies due (whether principal or otherwise) from the Placement into the above Beneficiary Account.
A12: Step 1: Refresh Data | D12: Pg6 | E12: NO | I12: FUND | J12: FUND MAPPING
I13: PSA | J13: PSA-EQ
I14: PA | J14: PA-EQ | K14: __________________________________ | Q14: __________________________________
I15: Ansta | J15: STA-EQ | K15: Authorised Signatory | Q15: Authorised Signatory
A16: Step 3.1: Print Report | I16: Group | J16: GFTA-EQ
I17: Gen | J17: GEN-EQ | K17: ="Name: " & Signature1 -> Name: INTERNAL | Q17: ="Name: " & Signature2 -> 
I18: SHF | J18: SHF-EQ | K18: ="Designation: " & Designation1 ->  | Q18: ="Designation: " &Designation2 -> 
A21: Step 2: Export Report

Sheet NetIncome (hidden)
B3: FUND | C3: Realised MTD | D3: Realised YTD | E3: Dividend for the MTH (ex-date) | F3: Dividend for the Year (ex-date) | G3: MTD Unrealised Gain/(Loss) | H3: YTD Unrealised Gain/(Loss) | I3: Net Income MTD | J3: Net Income YTD
B4: PSA | C4: =SUMIFS(InTB!B:B,InTB!A:A,"MTH",InTB!D:D,VLOOKUP(B4,Main!I:J,2,FALSE),InTB!C:C,">=600000",InTB!C:C,"<=600999") -> -691912.89 | D4: =SUMIFS(InTB!B:B,InTB!A:A,"YTD",InTB!D:D,VLOOKUP(B4,Main!I:J,2,FALSE),InTB!C:C,">=600000",InTB!C:C,"<=600999") -> -6090306.2 | E4: =SUMIFS(InTB!B:B,InTB!A:A,"MTH",InTB!D:D,VLOOKUP(B4,Main!I:J,2,FALSE),InTB!C:C,">=636010",InTB!C:C,"<=636999")+SUMIFS(InTB!B:B,InTB!A:A,"MTH",InTB!D:D,VLOOKUP(B4,Main!I:J,2,FALSE),InTB!C:C,">=635010",InTB!C:C,"<=635999") -> 0 | F4: =SUMIFS(InTB!B:B,InTB!A:A,"YTD",InTB!D:D,VLOOKUP(B4,Main!I:J,2,FALSE),InTB!C:C,">=636010",InTB!C:C,"<=636999")+SUMIFS(InTB!B:B,InTB!A:A,"YTD",InTB!D:D,VLOOKUP(B4,Main!I:J,2,FALSE),InTB!C:C,">=635010",InTB!C:C,"<=635999") -> 700917.71 | G4: =SUMIFS(InTB!B:B,InTB!A:A,"MTH",InTB!D:D,VLOOKUP(B4,Main!I:J,2,FALSE),InTB!C:C,">=689000",InTB!C:C,"<=689999")+SUMIFS(InTB!B:B,InTB!A:A,"MTH",InTB!D:D,VLOOKUP(B4,Main!I:J,2,FALSE),InTB!C:C,">=688000",InTB!C:C,"<=688999")+SUMIFS(InTB!B:B,InTB!A:A,"MTH",InTB!D:D,VLOOKUP(B4,Main!I:J,2,FALSE),InTB!C:C,">=989000",InTB!C:C,"<=989999")+SUMIFS(InTB!B:B,InTB!A:A,"MTH",InTB!D:D,VLOOKUP(B4,Main!I:J,2,FALSE),InTB!C:C,">=988000",InTB!C:C,"<=988999") -> 3242658.29 | H4: =SUMIFS(InTB!B:B,InTB!A:A,"YTD",InTB!D:D,VLOOKUP(B4,Main!I:J,2,FALSE),InTB!C:C,">=689000",InTB!C:C,"<=689999")+SUMIFS(InTB!B:B,InTB!A:A,"YTD",InTB!D:D,VLOOKUP(B4,Main!I:J,2,FALSE),InTB!C:C,">=688000",InTB!C:C,"<=688999")+SUMIFS(InTB!B:B,InTB!A:A,"YTD",InTB!D:D,VLOOKUP(B4,Main!I:J,2,FALSE),InTB!C:C,">=989000",InTB!C:C,"<=989999")+SUMIFS(InTB!B:B,InTB!A:A,"YTD",InTB!D:D,VLOOKUP(B4,Main!I:J,2,FALSE),InTB!C:C,">=988000",InTB!C:C,"<=988999") -> -103544.25 | I4: =+C4+E4+G4 -> 2550745.4 | J4: -5492932.74
B5: PA | C5: =SUMIFS(InTB!B:B,InTB!A:A,"MTH",InTB!D:D,VLOOKUP(B5,Main!I:J,2,FALSE),InTB!C:C,">=600000",InTB!C:C,"<=600999") -> -1098676.84 | D5: =SUMIFS(InTB!B:B,InTB!A:A,"YTD",InTB!D:D,VLOOKUP(B5,Main!I:J,2,FALSE),InTB!C:C,">=600000",InTB!C:C,"<=600999") -> -6361736.43 | E5: =SUMIFS(InTB!B:B,InTB!A:A,"MTH",InTB!D:D,VLOOKUP(B5,Main!I:J,2,FALSE),InTB!C:C,">=636010",InTB!C:C,"<=636999")+SUMIFS(InTB!B:B,InTB!A:A,"MTH",InTB!D:D,VLOOKUP(B5,Main!I:J,2,FALSE),InTB!C:C,">=635010",InTB!C:C,"<=635999") -> 0 | F5: =SUMIFS(InTB!B:B,InTB!A:A,"YTD",InTB!D:D,VLOOKUP(B5,Main!I:J,2,FALSE),InTB!C:C,">=636010",InTB!C:C,"<=636999")+SUMIFS(InTB!B:B,InTB!A:A,"YTD",InTB!D:D,VLOOKUP(B5,Main!I:J,2,FALSE),InTB!C:C,">=635010",InTB!C:C,"<=635999") -> 815038.66 | G5: =SUMIFS(InTB!B:B,InTB!A:A,"MTH",InTB!D:D,VLOOKUP(B5,Main!I:J,2,FALSE),InTB!C:C,">=689000",InTB!C:C,"<=689999")+SUMIFS(InTB!B:B,InTB!A:A,"MTH",InTB!D:D,VLOOKUP(B5,Main!I:J,2,FALSE),InTB!C:C,">=688000",InTB!C:C,"<=688999")+SUMIFS(InTB!B:B,InTB!A:A,"MTH",InTB!D:D,VLOOKUP(B5,Main!I:J,2,FALSE),InTB!C:C,">=989000",InTB!C:C,"<=989999")+SUMIFS(InTB!B:B,InTB!A:A,"MTH",InTB!D:D,VLOOKUP(B5,Main!I:J,2,FALSE),InTB!C:C,">=988000",InTB!C:C,"<=988999") -> 3687491.4 | H5: =SUMIFS(InTB!B:B,InTB!A:A,"YTD",InTB!D:D,VLOOKUP(B5,Main!I:J,2,FALSE),InTB!C:C,">=689000",InTB!C:C,"<=689999")+SUMIFS(InTB!B:B,InTB!A:A,"YTD",InTB!D:D,VLOOKUP(B5,Main!I:J,2,FALSE),InTB!C:C,">=688000",InTB!C:C,"<=688999")+SUMIFS(InTB!B:B,InTB!A:A,"YTD",InTB!D:D,VLOOKUP(B5,Main!I:J,2,FALSE),InTB!C:C,">=989000",InTB!C:C,"<=989999")+SUMIFS(InTB!B:B,InTB!A:A,"YTD",InTB!D:D,VLOOKUP(B5,Main!I:J,2,FALSE),InTB!C:C,">=988000",InTB!C:C,"<=988999") -> 217621.95 | I5: 2588814.56 | J5: -5329075.82
B6: Ansta | C6: =SUMIFS(InTB!B:B,InTB!A:A,"MTH",InTB!D:D,VLOOKUP(B6,Main!I:J,2,FALSE),InTB!C:C,">=600000",InTB!C:C,"<=600999") -> -122689.06 | D6: =SUMIFS(InTB!B:B,InTB!A:A,"YTD",InTB!D:D,VLOOKUP(B6,Main!I:J,2,FALSE),InTB!C:C,">=600000",InTB!C:C,"<=600999") -> -1001069.14 | E6: =SUMIFS(InTB!B:B,InTB!A:A,"MTH",InTB!D:D,VLOOKUP(B6,Main!I:J,2,FALSE),InTB!C:C,">=636010",InTB!C:C,"<=636999")+SUMIFS(InTB!B:B,InTB!A:A,"MTH",InTB!D:D,VLOOKUP(B6,Main!I:J,2,FALSE),InTB!C:C,">=635010",InTB!C:C,"<=635999") -> 0 | F6: =SUMIFS(InTB!B:B,InTB!A:A,"YTD",InTB!D:D,VLOOKUP(B6,Main!I:J,2,FALSE),InTB!C:C,">=636010",InTB!C:C,"<=636999")+SUMIFS(InTB!B:B,InTB!A:A,"YTD",InTB!D:D,VLOOKUP(B6,Main!I:J,2,FALSE),InTB!C:C,">=635010",InTB!C:C,"<=635999") -> 110576.56 | G6: =SUMIFS(InTB!B:B,InTB!A:A,"MTH",InTB!D:D,VLOOKUP(B6,Main!I:J,2,FALSE),InTB!C:C,">=689000",InTB!C:C,"<=689999")+SUMIFS(InTB!B:B,InTB!A:A,"MTH",InTB!D:D,VLOOKUP(B6,Main!I:J,2,FALSE),InTB!C:C,">=688000",InTB!C:C,"<=688999")+SUMIFS(InTB!B:B,InTB!A:A,"MTH",InTB!D:D,VLOOKUP(B6,Main!I:J,2,FALSE),InTB!C:C,">=989000",InTB!C:C,"<=989999")+SUMIFS(InTB!B:B,InTB!A:A,"MTH",InTB!D:D,VLOOKUP(B6,Main!I:J,2,FALSE),InTB!C:C,">=988000",InTB!C:C,"<=988999") -> 560591.7 | H6: =SUMIFS(InTB!B:B,InTB!A:A,"YTD",InTB!D:D,VLOOKUP(B6,Main!I:J,2,FALSE),InTB!C:C,">=689000",InTB!C:C,"<=689999")+SUMIFS(InTB!B:B,InTB!A:A,"YTD",InTB!D:D,VLOOKUP(B6,Main!I:J,2,FALSE),InTB!C:C,">=688000",InTB!C:C,"<=688999")+SUMIFS(InTB!B:B,InTB!A:A,"YTD",InTB!D:D,VLOOKUP(B6,Main!I:J,2,FALSE),InTB!C:C,">=989000",InTB!C:C,"<=989999")+SUMIFS(InTB!B:B,InTB!A:A,"YTD",InTB!D:D,VLOOKUP(B6,Main!I:J,2,FALSE),InTB!C:C,">=988000",InTB!C:C,"<=988999") -> -96168.53 | I6: 437902.64 | J6: -986661.11
B7: Group | C7: =SUMIFS(InTB!B:B,InTB!A:A,"MTH",InTB!D:D,VLOOKUP(B7,Main!I:J,2,FALSE),InTB!C:C,">=600000",InTB!C:C,"<=600999") -> -126418.59 | D7: =SUMIFS(InTB!B:B,InTB!A:A,"YTD",InTB!D:D,VLOOKUP(B7,Main!I:J,2,FALSE),InTB!C:C,">=600000",InTB!C:C,"<=600999") -> -649651.19 | E7: =SUMIFS(InTB!B:B,InTB!A:A,"MTH",InTB!D:D,VLOOKUP(B7,Main!I:J,2,FALSE),InTB!C:C,">=636010",InTB!C:C,"<=636999")+SUMIFS(InTB!B:B,InTB!A:A,"MTH",InTB!D:D,VLOOKUP(B7,Main!I:J,2,FALSE),InTB!C:C,">=635010",InTB!C:C,"<=635999") -> 0 | F7: =SUMIFS(InTB!B:B,InTB!A:A,"YTD",InTB!D:D,VLOOKUP(B7,Main!I:J,2,FALSE),InTB!C:C,">=636010",InTB!C:C,"<=636999")+SUMIFS(InTB!B:B,InTB!A:A,"YTD",InTB!D:D,VLOOKUP(B7,Main!I:J,2,FALSE),InTB!C:C,">=635010",InTB!C:C,"<=635999") -> 86029.74 | G7: =SUMIFS(InTB!B:B,InTB!A:A,"MTH",InTB!D:D,VLOOKUP(B7,Main!I:J,2,FALSE),InTB!C:C,">=689000",InTB!C:C,"<=689999")+SUMIFS(InTB!B:B,InTB!A:A,"MTH",InTB!D:D,VLOOKUP(B7,Main!I:J,2,FALSE),InTB!C:C,">=688000",InTB!C:C,"<=688999")+SUMIFS(InTB!B:B,InTB!A:A,"MTH",InTB!D:D,VLOOKUP(B7,Main!I:J,2,FALSE),InTB!C:C,">=989000",InTB!C:C,"<=989999")+SUMIFS(InTB!B:B,InTB!A:A,"MTH",InTB!D:D,VLOOKUP(B7,Main!I:J,2,FALSE),InTB!C:C,">=988000",InTB!C:C,"<=988999") -> 391039.52 | H7: =SUMIFS(InTB!B:B,InTB!A:A,"YTD",InTB!D:D,VLOOKUP(B7,Main!I:J,2,FALSE),InTB!C:C,">=689000",InTB!C:C,"<=689999")+SUMIFS(InTB!B:B,InTB!A:A,"YTD",InTB!D:D,VLOOKUP(B7,Main!I:J,2,FALSE),InTB!C:C,">=688000",InTB!C:C,"<=688999")+SUMIFS(InTB!B:B,InTB!A:A,"YTD",InTB!D:D,VLOOKUP(B7,Main!I:J,2,FALSE),InTB!C:C,">=989000",InTB!C:C,"<=989999")+SUMIFS(InTB!B:B,InTB!A:A,"YTD",InTB!D:D,VLOOKUP(B7,Main!I:J,2,FALSE),InTB!C:C,">=988000",InTB!C:C,"<=988999") -> -44563.98 | I7: 264620.93 | J7: -608185.43
B8: Gen | C8: =SUMIFS(InTB!B:B,InTB!A:A,"MTH",InTB!D:D,VLOOKUP(B8,Main!I:J,2,FALSE),InTB!C:C,">=600000",InTB!C:C,"<=600999") -> 0 | D8: =SUMIFS(InTB!B:B,InTB!A:A,"YTD",InTB!D:D,VLOOKUP(B8,Main!I:J,2,FALSE),InTB!C:C,">=600000",InTB!C:C,"<=600999") -> 0 | E8: =SUMIFS(InTB!B:B,InTB!A:A,"MTH",InTB!D:D,VLOOKUP(B8,Main!I:J,2,FALSE),InTB!C:C,">=636010",InTB!C:C,"<=636999")+SUMIFS(InTB!B:B,InTB!A:A,"MTH",InTB!D:D,VLOOKUP(B8,Main!I:J,2,FALSE),InTB!C:C,">=635010",InTB!C:C,"<=635999") -> 0 | F8: =SUMIFS(InTB!B:B,InTB!A:A,"YTD",InTB!D:D,VLOOKUP(B8,Main!I:J,2,FALSE),InTB!C:C,">=636010",InTB!C:C,"<=636999")+SUMIFS(InTB!B:B,InTB!A:A,"YTD",InTB!D:D,VLOOKUP(B8,Main!I:J,2,FALSE),InTB!C:C,">=635010",InTB!C:C,"<=635999") -> 0 | G8: =SUMIFS(InTB!B:B,InTB!A:A,"MTH",InTB!D:D,VLOOKUP(B8,Main!I:J,2,FALSE),InTB!C:C,">=689000",InTB!C:C,"<=689999")+SUMIFS(InTB!B:B,InTB!A:A,"MTH",InTB!D:D,VLOOKUP(B8,Main!I:J,2,FALSE),InTB!C:C,">=688000",InTB!C:C,"<=688999")+SUMIFS(InTB!B:B,InTB!A:A,"MTH",InTB!D:D,VLOOKUP(B8,Main!I:J,2,FALSE),InTB!C:C,">=989000",InTB!C:C,"<=989999")+SUMIFS(InTB!B:B,InTB!A:A,"MTH",InTB!D:D,VLOOKUP(B8,Main!I:J,2,FALSE),InTB!C:C,">=988000",InTB!C:C,"<=988999") -> 0 | H8: =SUMIFS(InTB!B:B,InTB!A:A,"YTD",InTB!D:D,VLOOKUP(B8,Main!I:J,2,FALSE),InTB!C:C,">=689000",InTB!C:C,"<=689999")+SUMIFS(InTB!B:B,InTB!A:A,"YTD",InTB!D:D,VLOOKUP(B8,Main!I:J,2,FALSE),InTB!C:C,">=688000",InTB!C:C,"<=688999")+SUMIFS(InTB!B:B,InTB!A:A,"YTD",InTB!D:D,VLOOKUP(B8,Main!I:J,2,FALSE),InTB!C:C,">=989000",InTB!C:C,"<=989999")+SUMIFS(InTB!B:B,InTB!A:A,"YTD",InTB!D:D,VLOOKUP(B8,Main!I:J,2,FALSE),InTB!C:C,">=988000",InTB!C:C,"<=988999") -> 0 | I8: 0 | J8: 0
B9: SHF | C9: =SUMIFS(InTB!B:B,InTB!A:A,"MTH",InTB!D:D,VLOOKUP(B9,Main!I:J,2,FALSE),InTB!C:C,">=600000",InTB!C:C,"<=600999") -> -21923.48 | D9: =SUMIFS(InTB!B:B,InTB!A:A,"YTD",InTB!D:D,VLOOKUP(B9,Main!I:J,2,FALSE),InTB!C:C,">=600000",InTB!C:C,"<=600999") -> -529088.87 | E9: =SUMIFS(InTB!B:B,InTB!A:A,"MTH",InTB!D:D,VLOOKUP(B9,Main!I:J,2,FALSE),InTB!C:C,">=636010",InTB!C:C,"<=636999")+SUMIFS(InTB!B:B,InTB!A:A,"MTH",InTB!D:D,VLOOKUP(B9,Main!I:J,2,FALSE),InTB!C:C,">=635010",InTB!C:C,"<=635999") -> 0 | F9: =SUMIFS(InTB!B:B,InTB!A:A,"YTD",InTB!D:D,VLOOKUP(B9,Main!I:J,2,FALSE),InTB!C:C,">=636010",InTB!C:C,"<=636999")+SUMIFS(InTB!B:B,InTB!A:A,"YTD",InTB!D:D,VLOOKUP(B9,Main!I:J,2,FALSE),InTB!C:C,">=635010",InTB!C:C,"<=635999") -> 78481.04 | G9: =SUMIFS(InTB!B:B,InTB!A:A,"MTH",InTB!D:D,VLOOKUP(B9,Main!I:J,2,FALSE),InTB!C:C,">=689000",InTB!C:C,"<=689999")+SUMIFS(InTB!B:B,InTB!A:A,"MTH",InTB!D:D,VLOOKUP(B9,Main!I:J,2,FALSE),InTB!C:C,">=688000",InTB!C:C,"<=688999")+SUMIFS(InTB!B:B,InTB!A:A,"MTH",InTB!D:D,VLOOKUP(B9,Main!I:J,2,FALSE),InTB!C:C,">=989000",InTB!C:C,"<=989999")+SUMIFS(InTB!B:B,InTB!A:A,"MTH",InTB!D:D,VLOOKUP(B9,Main!I:J,2,FALSE),InTB!C:C,">=988000",InTB!C:C,"<=988999") -> 220947.59 | H9: =SUMIFS(InTB!B:B,InTB!A:A,"YTD",InTB!D:D,VLOOKUP(B9,Main!I:J,2,FALSE),InTB!C:C,">=689000",InTB!C:C,"<=689999")+SUMIFS(InTB!B:B,InTB!A:A,"YTD",InTB!D:D,VLOOKUP(B9,Main!I:J,2,FALSE),InTB!C:C,">=688000",InTB!C:C,"<=688999")+SUMIFS(InTB!B:B,InTB!A:A,"YTD",InTB!D:D,VLOOKUP(B9,Main!I:J,2,FALSE),InTB!C:C,">=989000",InTB!C:C,"<=989999")+SUMIFS(InTB!B:B,InTB!A:A,"YTD",InTB!D:D,VLOOKUP(B9,Main!I:J,2,FALSE),InTB!C:C,">=988000",InTB!C:C,"<=988999") -> 128901.78 | I9: 199024.11 | J9: -321706.05

Sheet InTB (hidden)
A2: sType | B2: Diff | C2: GLCode | D2: qFundCode
A3: MTH | B3: 0 | C3: 100010 | D3: GEN-EQ
A4: MTH | B4: 0 | C4: 101010 | D4: GEN-EQ
A5: MTH | B5: 0 | C5: 800000 | D5: GEN-EQ
A6: MTH | B6: 0 | C6: 830000 | D6: GEN-EQ
A7: MTH | B7: 383808 | C7: 100010 | D7: GFTA-EQ
A8: MTH | B8: -233000 | C8: 100211 | D8: GFTA-EQ
A9: MTH | B9: 0 | C9: 100460 | D9: GFTA-EQ
A10: MTH | B10: 0 | C10: 101010 | D10: GFTA-EQ
A11: MTH | B11: -273.93 | C11: 139211 | D11: GFTA-EQ
A12: MTH | B12: -388639.52 | C12: 189010 | D12: GFTA-EQ
A13: MTH | B13: -2400 | C13: 189460 | D13: GFTA-EQ
A14: MTH | B14: -17333.17 | C14: 500000 | D14: GFTA-EQ
A15: MTH | B15: -126418.59 | C15: 600010 | D15: GFTA-EQ
A16: MTH | B16: 7668.58 | C16: 630211 | D16: GFTA-EQ
A17: MTH | B17: 0 | C17: 636010 | D17: GFTA-EQ
A18: MTH | B18: 273.93 | C18: 639211 | D18: GFTA-EQ
A19: MTH | B19: 388639.52 | C19: 689010 | D19: GFTA-EQ
A20: MTH | B20: 2400 | C20: 689460 | D20: GFTA-EQ
A21: MTH | B21: -50.04 | C21: 700301 | D21: GFTA-EQ
A22: MTH | B22: 0 | C22: 800000 | D22: GFTA-EQ
A23: MTH | B23: 0 | C23: 810000 | D23: GFTA-EQ
A24: MTH | B24: 0 | C24: 830000 | D24: GFTA-EQ
A25: MTH | B25: 0 | C25: 939211 | D25: GFTA-EQ
A26: MTH | B26: 0 | C26: 989010 | D26: GFTA-EQ
A27: MTH | B27: 3305036.66 | C27: 100010 | D27: PA-EQ
A28: MTH | B28: -2019000 | C28: 100211 | D28: PA-EQ
A29: MTH | B29: 0 | C29: 100460 | D29: PA-EQ
A30: MTH | B30: 0 | C30: 101010 | D30: PA-EQ
A31: MTH | B31: -50527.55 | C31: 139211 | D31: PA-EQ
A32: MTH | B32: -3665371.4 | C32: 189010 | D32: PA-EQ
A33: MTH | B33: -22120 | C33: 189460 | D33: PA-EQ
A34: MTH | B34: 12.25 | C34: 500000 | D34: PA-EQ
A35: MTH | B35: -1098676.84 | C35: 600010 | D35: PA-EQ
A36: MTH | B36: 59121.9 | C36: 630211 | D36: PA-EQ
A37: MTH | B37: 0 | C37: 636010 | D37: PA-EQ
A38: MTH | B38: 50527.55 | C38: 639211 | D38: PA-EQ
A39: MTH | B39: 3665371.4 | C39: 689010 | D39: PA-EQ
A40: MTH | B40: 22120 | C40: 689460 | D40: PA-EQ
A41: MTH | B41: -462.92 | C41: 700301 | D41: PA-EQ
A42: MTH | B42: 0 | C42: 710102 | D42: PA-EQ
A43: MTH | B43: 0 | C43: 800000 | D43: PA-EQ
A44: MTH | B44: 0 | C44: 810000 | D44: PA-EQ
A45: MTH | B45: 0 | C45: 830000 | D45: PA-EQ
A46: MTH | B46: 0 | C46: 939211 | D46: PA-EQ
A47: MTH | B47: 0 | C47: 989010 | D47: PA-EQ
A48: MTH | B48: 2058099.37 | C48: 100010 | D48: PSA-EQ
A49: MTH | B49: -1166000 | C49: 100211 | D49: PSA-EQ
A50: MTH | B50: 0 | C50: 100460 | D50: PSA-EQ
A51: MTH | B51: 0 | C51: 101010 | D51: PSA-EQ
A52: MTH | B52: -71523.47 | C52: 139211 | D52: PSA-EQ
A53: MTH | B53: -3218534.29 | C53: 189010 | D53: PSA-EQ
A54: MTH | B54: -24124 | C54: 189460 | D54: PSA-EQ
A55: MTH | B55: 0 | C55: 299010 | D55: PSA-EQ
A56: MTH | B56: -22.71 | C56: 500000 | D56: PSA-EQ
A57: MTH | B57: -691912.89 | C57: 600010 | D57: PSA-EQ
A58: MTH | B58: 72054.05 | C58: 630211 | D58: PSA-EQ
A59: MTH | B59: 0 | C59: 636010 | D59: PSA-EQ
A60: MTH | B60: 71523.47 | C60: 639211 | D60: PSA-EQ
A61: MTH | B61: 3218534.29 | C61: 689010 | D61: PSA-EQ
A62: MTH | B62: 24124 | C62: 689460 | D62: PSA-EQ
A63: MTH | B63: -469.57 | C63: 700301 | D63: PSA-EQ
A64: MTH | B64: 0 | C64: 710102 | D64: PSA-EQ
A65: MTH | B65: 0 | C65: 800000 | D65: PSA-EQ
A66: MTH | B66: 0 | C66: 810000 | D66: PSA-EQ
A67: MTH | B67: 0 | C67: 830000 | D67: PSA-EQ
A68: MTH | B68: 0 | C68: 939211 | D68: PSA-EQ
A69: MTH | B69: 0 | C69: 989010 | D69: PSA-EQ
A70: MTH | B70: 67116.27 | C70: 100010 | D70: SHF-EQ
A71: MTH | B71: -56000 | C71: 100211 | D71: SHF-EQ
A72: MTH | B72: 0 | C72: 100460 | D72: SHF-EQ
A73: MTH | B73: 0 | C73: 101010 | D73: SHF-EQ
A74: MTH | B74: -196.37 | C74: 139211 | D74: SHF-EQ
A75: MTH | B75: -218377.59 | C75: 189010 | D75: SHF-EQ
A76: MTH | B76: -2570 | C76: 189460 | D76: SHF-EQ
A77: MTH | B77: -174.51 | C77: 500000 | D77: SHF-EQ
A78: MTH | B78: -21923.48 | C78: 600010 | D78: SHF-EQ
A79: MTH | B79: 11025.02 | C79: 630211 | D79: SHF-EQ
A80: MTH | B80: 0 | C80: 636010 | D80: SHF-EQ
A81: MTH | B81: 196.37 | C81: 639211 | D81: SHF-EQ
A82: MTH | B82: 218377.59 | C82: 689010 | D82: SHF-EQ
A83: MTH | B83: 2570 | C83: 689460 | D83: SHF-EQ
A84: MTH | B84: -43.3 | C84: 700301 | D84: SHF-EQ
A85: MTH | B85: 0 | C85: 710102 | D85: SHF-EQ
A86: MTH | B86: 0 | C86: 800000 | D86: SHF-EQ
A87: MTH | B87: 0 | C87: 810000 | D87: SHF-EQ
A88: MTH | B88: 0 | C88: 830000 | D88: SHF-EQ
A89: MTH | B89: 0 | C89: 939211 | D89: SHF-EQ
A90: MTH | B90: 0 | C90: 989010 | D90: SHF-EQ
A91: MTH | B91: 357943.34 | C91: 100010 | D91: STA-EQ
A92: MTH | B92: -210000 | C92: 100211 | D92: STA-EQ
A93: MTH | B93: 0 | C93: 100460 | D93: STA-EQ
A94: MTH | B94: 0 | C94: 101010 | D94: STA-EQ
A95: MTH | B95: 6810.08 | C95: 139211 | D95: STA-EQ
A96: MTH | B96: -555741.7 | C96: 189010 | D96: STA-EQ
A97: MTH | B97: -4850 | C97: 189460 | D97: STA-EQ
A98: MTH | B98: -52059.88 | C98: 500000 | D98: STA-EQ
A99: MTH | B99: -122689.06 | C99: 600010 | D99: STA-EQ
A100: MTH | B100: 26886.19 | C100: 630211 | D100: STA-EQ
A101: MTH | B101: 0 | C101: 636010 | D101: STA-EQ
A102: MTH | B102: -6810.08 | C102: 639211 | D102: STA-EQ
A103: MTH | B103: 555741.7 | C103: 689010 | D103: STA-EQ
A104: MTH | B104: 4850 | C104: 689460 | D104: STA-EQ
A105: MTH | B105: -80.59 | C105: 700301 | D105: STA-EQ
A106: MTH | B106: 0 | C106: 710102 | D106: STA-EQ
A107: MTH | B107: 0 | C107: 800000 | D107: STA-EQ
A108: MTH | B108: 0 | C108: 810000 | D108: STA-EQ
A109: MTH | B109: 0 | C109: 830000 | D109: STA-EQ
A110: MTH | B110: 0 | C110: 939211 | D110: STA-EQ
A111: MTH | B111: 0 | C111: 989010 | D111: STA-EQ
A112: YTD | B112: -588688.16 | C112: 100010 | D112: GEN-EQ
A113: YTD | B113: 588688.16 | C113: 101010 | D113: GEN-EQ
A114: YTD | B114: 2885853.8 | C114: 800000 | D114: GEN-EQ
A115: YTD | B115: -2885853.8 | C115: 830000 | D115: GEN-EQ
A116: YTD | B116: -6317680.22 | C116: 100010 | D116: GFTA-EQ
A117: YTD | B117: -6502000 | C117: 100211 | D117: GFTA-EQ
A118: YTD | B118: -518847.8 | C118: 100460 | D118: GFTA-EQ
A119: YTD | B119: 304914.2 | C119: 101010 | D119: GFTA-EQ
A120: YTD | B120: -694.73 | C120: 139211 | D120: GFTA-EQ
A121: YTD | B121: 511453.66 | C121: 189010 | D121: GFTA-EQ
A122: YTD | B122: 8167.8 | C122: 189460 | D122: GFTA-EQ
A123: YTD | B123: -14674.78 | C123: 200200 | D123: GFTA-EQ
A124: YTD | B124: -2656 | C124: 299460 | D124: GFTA-EQ
A125: YTD | B125: -17894.23 | C125: 500000 | D125: GFTA-EQ
A126: YTD | B126: -649651.19 | C126: 600010 | D126: GFTA-EQ
A127: YTD | B127: 59626.28 | C127: 630211 | D127: GFTA-EQ
A128: YTD | B128: 83373.74 | C128: 636010 | D128: GFTA-EQ
A129: YTD | B129: 2656 | C129: 636460 | D129: GFTA-EQ
A130: YTD | B130: 694.73 | C130: 639211 | D130: GFTA-EQ
A131: YTD | B131: -511453.66 | C131: 689010 | D131: GFTA-EQ
A132: YTD | B132: -8167.8 | C132: 689460 | D132: GFTA-EQ
A133: YTD | B133: -4435.3 | C133: 700301 | D133: GFTA-EQ
A134: YTD | B134: 14953083.76 | C134: 800000 | D134: GFTA-EQ
A135: YTD | B135: -475057.48 | C135: 810000 | D135: GFTA-EQ
A136: YTD | B136: -1375538.36 | C136: 830000 | D136: GFTA-EQ
A137: YTD | B137: -276.1 | C137: 939211 | D137: GFTA-EQ
A138: YTD | B138: 475057.48 | C138: 989010 | D138: GFTA-EQ
A139: YTD | B139: -56082973.91 | C139: 100010 | D139: PA-EQ
A140: YTD | B140: -65309000 | C140: 100211 | D140: PA-EQ
A141: YTD | B141: -4843146.86 | C141: 100460 | D141: PA-EQ
A142: YTD | B142: 420112.29 | C142: 101010 | D142: PA-EQ
A143: YTD | B143: -344620.24 | C143: 139211 | D143: PA-EQ
A144: YTD | B144: 4499016.05 | C144: 189010 | D144: PA-EQ
A145: YTD | B145: 74426.86 | C145: 189460 | D145: PA-EQ
A146: YTD | B146: -246031.05 | C146: 200200 | D146: PA-EQ
A147: YTD | B147: -24900 | C147: 299460 | D147: PA-EQ
A148: YTD | B148: -347.85 | C148: 500000 | D148: PA-EQ
A149: YTD | B149: -6361736.43 | C149: 600010 | D149: PA-EQ
A150: YTD | B150: 444383.16 | C150: 630211 | D150: PA-EQ
A151: YTD | B151: 790138.66 | C151: 636010 | D151: PA-EQ
A152: YTD | B152: 24900 | C152: 636460 | D152: PA-EQ
A153: YTD | B153: 344620.24 | C153: 639211 | D153: PA-EQ
A154: YTD | B154: -4499016.05 | C154: 689010 | D154: PA-EQ
A155: YTD | B155: -74426.86 | C155: 689460 | D155: PA-EQ
A156: YTD | B156: -8414.62 | C156: 700301 | D156: PA-EQ
A157: YTD | B157: -75 | C157: 710102 | D157: PA-EQ
A158: YTD | B158: 147555352.3 | C158: 800000 | D158: PA-EQ
A159: YTD | B159: -4791064.86 | C159: 810000 | D159: PA-EQ
A160: YTD | B160: -16324236.64 | C160: 830000 | D160: PA-EQ
A161: YTD | B161: -34024.04 | C161: 939211 | D161: PA-EQ
A162: YTD | B162: 4791064.86 | C162: 989010 | D162: PA-EQ
A163: YTD | B163: -57555386.34 | C163: 100010 | D163: PSA-EQ
A164: YTD | B164: -78050000 | C164: 100211 | D164: PSA-EQ
A165: YTD | B165: -5447282.16 | C165: 100460 | D165: PSA-EQ
A166: YTD | B166: 833801.44 | C166: 101010 | D166: PSA-EQ
A167: YTD | B167: -593266.54 | C167: 139211 | D167: PSA-EQ
A168: YTD | B168: 4550624.84 | C168: 189010 | D168: PSA-EQ
A169: YTD | B169: 84872.16 | C169: 189460 | D169: PSA-EQ
A170: YTD | B170: -271748.25 | C170: 200200 | D170: PSA-EQ
A171: YTD | B171: -0.01 | C171: 299010 | D171: PSA-EQ
A172: YTD | B172: -28253.2 | C172: 299460 | D172: PSA-EQ
A173: YTD | B173: -929.85 | C173: 500000 | D173: PSA-EQ
A174: YTD | B174: -6090306.2 | C174: 600010 | D174: PSA-EQ
A175: YTD | B175: 543017.72 | C175: 630211 | D175: PSA-EQ
A176: YTD | B176: 672664.51 | C176: 636010 | D176: PSA-EQ
A177: YTD | B177: 28253.2 | C177: 636460 | D177: PSA-EQ
A178: YTD | B178: 593266.54 | C178: 639211 | D178: PSA-EQ
A179: YTD | B179: -4550624.84 | C179: 689010 | D179: PSA-EQ
A180: YTD | B180: -84872.16 | C180: 689460 | D180: PSA-EQ
A181: YTD | B181: -7555.46 | C181: 700301 | D181: PSA-EQ
A182: YTD | B182: -80 | C182: 710102 | D182: PSA-EQ
A183: YTD | B183: 154290115.4 | C183: 800000 | D183: PSA-EQ
A184: YTD | B184: -4531952.75 | C184: 810000 | D184: PSA-EQ
A185: YTD | B185: -8776189.22 | C185: 830000 | D185: PSA-EQ
A186: YTD | B186: -140121.55 | C186: 939211 | D186: PSA-EQ
A187: YTD | B187: 4531952.75 | C187: 989010 | D187: PSA-EQ
A188: YTD | B188: -5482878.36 | C188: 100010 | D188: SHF-EQ
A189: YTD | B189: -8419000 | C189: 100211 | D189: SHF-EQ
A190: YTD | B190: -564832.62 | C190: 100460 | D190: SHF-EQ
A191: YTD | B191: 257236.12 | C191: 101010 | D191: SHF-EQ
A192: YTD | B192: -1542.26 | C192: 139211 | D192: SHF-EQ
A193: YTD | B193: 431429.48 | C193: 189010 | D193: SHF-EQ
A194: YTD | B194: 9012.62 | C194: 189460 | D194: SHF-EQ
A195: YTD | B195: -2905 | C195: 299460 | D195: SHF-EQ
A196: YTD | B196: -948.7 | C196: 500000 | D196: SHF-EQ
A197: YTD | B197: -529088.87 | C197: 600010 | D197: SHF-EQ
A198: YTD | B198: 87495.5 | C198: 630211 | D198: SHF-EQ
A199: YTD | B199: 75576.04 | C199: 636010 | D199: SHF-EQ
A200: YTD | B200: 2905 | C200: 636460 | D200: SHF-EQ
A201: YTD | B201: 1542.26 | C201: 639211 | D201: SHF-EQ
... 32 more rows
